bitfinex/quotes_BTCUSD_20240703
["timestamp","ask_amount","ask_price","bid_price","bid_amount"]
[1720015748848,1.5475115,60573.0,60571.0,0.002]
[1720015749092,0.3,60569.0,60562.0,0.009174]
[1720015749428,0.2549,60564.0,60562.0,0.009174]
[1720015749615,1.33745286,60563.0,60562.0,0.009174]
[1720015749820,1.28353586,60563.0,60562.0,0.009174]
[1720015750050,0.93013586,60563.0,60562.0,0.009174]
[1720015750177,0.93003586,60563.0,60562.0,0.009174]
[1720015750589,0.89902286,60563.0,60562.0,0.009174]
[1720015750803,0.47567686,60563.0,60562.0,0.009174]
[1720015751025,0.4158,60563.0,60562.0,0.009174]
[1720015751600,0.4158,60563.0,60562.0,0.010174]
[1720015751805,0.44084673,60563.0,60562.0,0.011174]
[1720015752012,0.44084673,60563.0,60562.0,0.010174]
[1720015752544,0.44784673,60563.0,60562.0,0.011174]
[1720015752750,0.13204673,60563.0,60562.0,0.011174]
[1720015753279,0.13204673,60563.0,60562.0,0.14267599]
[1720015753481,0.13204673,60563.0,60562.0,0.20267599]
[1720015753694,0.13204673,60563.0,60562.0,0.28283181]
[1720015754330,0.02330076,60563.0,60562.0,0.28283181]
[1720015754499,0.03336455,60563.0,60562.0,0.28183181]
[1720015754754,0.03326455,60563.0,60562.0,0.28183181]
[1720015754928,0.03236455,60563.0,60562.0,0.28183181]
[1720015755299,0.03936455,60563.0,60562.0,0.09132982]
[1720015755649,0.03936455,60563.0,60562.0,0.009174]
[1720015755650,0.02636455,60563.0,60562.0,0.009174]
[1720015755858,0.02736455,60563.0,60562.0,0.009174]
[1720015756006,0.02936455,60563.0,60562.0,0.009174]
[1720015756215,0.02636455,60563.0,60562.0,0.009174]
[1720015757010,0.12636455,60563.0,60562.0,0.009174]
[1720015757411,0.85121079,60563.0,60562.0,0.009174]
[1720015757607,0.8731314,60563.0,60562.0,0.009174]
[1720015757832,0.8624594,60563.0,60562.0,0.009174]
[1720015758033,0.84053879,60563.0,60562.0,0.009174]
[1720015758232,1.09063873,60563.0,60562.0,0.009174]
[1720015758437,1.02908131,60563.0,60562.0,0.009174]
[1720015758907,1.02708131,60563.0,60562.0,0.009174]
[1720015759108,1.02608131,60563.0,60562.0,0.009174]
[1720015759253,1.02898131,60563.0,60562.0,0.009174]
[1720015759457,1.19747932,60563.0,60562.0,0.009174]
[1720015759835,1.19737932,60563.0,60562.0,0.009174]
[1720015760262,1.35767812,60563.0,60562.0,0.009174]
[1720015760496,1.18918011,60563.0,60562.0,0.009174]
[1720015760709,1.18782132,60563.0,60562.0,0.009174]
[1720015761021,1.35618824,60563.0,60562.0,0.009174]
[1720015761356,1.18769023,60563.0,60562.0,0.009174]
[1720015762371,1.08419793,60563.0,60562.0,0.009174]
[1720015762584,1.18760087,60563.0,60562.0,0.009174]
[1720015762984,0.89114087,60563.0,60562.0,0.009174]
[1720015763187,0.82504087,60563.0,60562.0,0.009174]
[1720015764000,0.72095335,60563.0,60562.0,0.009174]
[1720015764625,0.85369632,60563.0,60562.0,0.009174]
[1720015765769,0.65559732,60563.0,60562.0,0.009174]
[1720015765971,0.49178132,60563.0,60562.0,0.009174]
[1720015766086,0.22828517,60563.0,60562.0,0.009174]
[1720015766837,0.22818517,60563.0,60562.0,0.009174]
[1720015767384,0.14830941,60563.0,60562.0,0.009174]
[1720015767528,0.12778265,60563.0,60562.0,0.009174]
[1720015767732,0.22778265,60563.0,60562.0,0.009174]
[1720015768293,0.66162565,60563.0,60562.0,0.009174]
[1720015768505,0.66162565,60563.0,60547.0,0.2611]
[1720015768506,0.16849801,60556.0,60542.0,0.009174]
[1720015768807,0.2362,60552.0,60542.0,0.009174]
[1720015769030,0.41567324,60552.0,60542.0,0.009174]
[1720015769238,0.83609324,60552.0,60542.0,0.009174]
[1720015769410,0.83652424,60552.0,60542.0,0.009174]
[1720015769609,0.84769824,60552.0,60542.0,0.009174]
[1720015769919,0.84769824,60552.0,60551.0,0.012174]
[1720015769920,0.95068339,60552.0,60551.0,0.012174]
[1720015770344,0.95068339,60552.0,60551.0,0.011174]
[1720015770551,0.95259682,60552.0,60551.0,0.011174]
[1720015770752,0.95949682,60552.0,60551.0,0.012174]
[1720015770960,0.95955371,60552.0,60551.0,0.012174]
[1720015771160,0.2402,60548.0,60542.0,0.009174]
[1720015771386,0.2362,60544.0,60542.0,0.009174]
[1720015771574,0.31701575,60544.0,60542.0,0.009174]
[1720015771822,0.41701575,60544.0,60542.0,0.009174]
[1720015771953,0.18081575,60544.0,60542.0,0.009174]
[1720015772562,0.18081575,60544.0,60543.0,0.13160199]
[1720015772964,0.12128625,60544.0,60543.0,0.19160199]
[1720015773563,0.1,60544.0,60543.0,0.19160199]
[1720015773829,0.18082553,60544.0,60543.0,0.44820199]
[1720015774109,0.12127035,60544.0,60543.0,0.65757007]
[1720015774250,0.02127035,60544.0,60543.0,0.60850079]
[1720015774452,0.02127035,60544.0,60543.0,0.66363936]
[1720015774655,0.02732964,60552.0,60551.0,0.08660199]
[1720015774896,0.10807726,60552.0,60551.0,0.08660199]
[1720015775095,0.20807726,60552.0,60551.0,0.08660199]
[1720015775277,0.20807726,60552.0,60551.0,0.14660199]
[1720015776438,0.19700326,60552.0,60551.0,0.14660199]
[1720015776638,0.09700326,60552.0,60551.0,0.14660199]
[1720015776946,0.01615564,60552.0,60551.0,0.14660199]
[1720015777143,0.2362,60563.0,60551.0,0.14660199]
[1720015777144,0.02117972,60555.0,60551.0,0.08660199]
[1720015777370,0.08059844,60554.0,60553.0,0.14660199]
[1720015777564,0.066177,60557.0,60555.0,0.14660199]
[1720015777774,0.0805851,60556.0,60555.0,0.14660199]
[1720015777976,0.02117427,60556.0,60555.0,0.14660199]
[1720015778313,0.02117427,60556.0,60555.0,0.38053506]
[1720015778513,0.02107427,60556.0,60555.0,0.30690079]
[1720015779119,0.02107427,60556.0,60555.0,0.55810079]
[1720015779362,0.02097427,60556.0,60555.0,0.55810079]
[1720015780327,0.02097427,60556.0,60555.0,0.56310079]
[1720015780477,0.02097427,60556.0,60555.0,0.55810079]
[1720015780874,0.02197427,60556.0,60555.0,0.56810079]
[1720015781077,0.02297427,60556.0,60555.0,0.57910079]
[1720015781679,0.02197427,60556.0,60555.0,0.56910079]
[1720015781888,0.02197427,60556.0,60555.0,0.77110079]
[1720015782486,0.02097427,60556.0,60555.0,0.76010079]
[1720015783158,0.02197427,60556.0,60555.0,0.77210079]
[1720015783572,0.001,60556.0,60555.0,0.77210079]
[1720015784884,0.002,60556.0,60555.0,0.78310079]
[1720015785612,0.002,60556.0,60555.0,0.90604502]
[1720015786267,0.002,60556.0,60555.0,0.42080199]
[1720015786508,0.002,60556.0,60555.0,0.49458432]
[1720015786735,0.002,60556.0,60555.0,0.16960199]
[1720015786972,0.002,60556.0,60555.0,0.21879373]
[1720015787179,0.002,60556.0,60555.0,0.16960199]
[1720015787382,0.002,60556.0,60555.0,0.21878878]
[1720015787897,0.00284,60556.0,60555.0,0.16960199]
[1720015788395,0.00284,60556.0,60555.0,0.69038319]
[1720015788706,0.00284,60556.0,60555.0,1.37780079]
[1720015788905,0.00284,60556.0,60555.0,1.52536559]
[1720015789083,0.00284,60556.0,60555.0,1.37780079]
[1720015789655,0.00284,60556.0,60555.0,1.5252451]
[1720015790227,0.00284,60556.0,60555.0,1.37780079]
[1720015790458,0.00084,60556.0,60555.0,1.02480079]
[1720015790675,0.00084,60556.0,60555.0,0.88848394]
[1720015790914,0.00084,60556.0,60555.0,0.77960079]
[1720015792107,0.00084,60556.0,60555.0,0.32090079]
[1720015792347,0.00084,60556.0,60555.0,0.17460199]
[1720015792552,0.1,60562.0,60558.0,0.08864977]
[1720015792769,0.0336444,60561.0,60558.0,0.08864977]
[1720015792986,0.0336444,60560.0,60558.0,0.08864977]
[1720015793187,0.1,60562.0,60559.0,0.22675781]
[1720015793361,0.1,60562.0,60561.0,0.08660199]
[1720015793569,0.13377039,60562.0,60561.0,0.08660199]
[1720015793767,0.2482,60564.0,60561.0,0.08660199]
[1720015793768,0.1,60563.0,60561.0,0.08660199]
[1720015793970,0.1,60563.0,60562.0,0.08660199]
[1720015794171,0.1,60565.0,60561.0,0.08660199]
[1720015794487,0.03315069,60564.0,60563.0,0.08660199]
[1720015794733,0.03315069,60564.0,60560.0,0.08660199]
[1720015794882,0.03315069,60563.0,60559.0,0.08015582]
[1720015795049,0.03315069,60562.0,60559.0,0.08015582]
[1720015795250,0.03315069,60561.0,60558.0,0.00204778]
[1720015795603,0.03315069,60560.0,60558.0,0.08864977]
[1720015795833,0.002,60563.0,60558.0,0.00204778]
[1720015795834,0.03315069,60559.0,60558.0,0.00204778]
[1720015796063,0.61935069,60559.0,60558.0,0.00204778]
[1720015796523,0.6862,60559.0,60558.0,0.00204778]
[1720015796723,0.71938974,60559.0,60558.0,0.00204778]
[1720015796846,0.6862,60559.0,60558.0,0.00204778]
[1720015797053,0.71938897,60559.0,60558.0,0.00204778]
[1720015797506,0.71938897,60559.0,60551.0,0.001024]
[1720015797507,0.2,60552.0,60551.0,0.001024]
[1720015797705,0.2,60552.0,60542.0,0.009174]
[1720015797706,1.67978477,60552.0,60542.0,0.009174]
[1720015797857,0.2362,60543.0,60542.0,0.009174]
[1720015798241,0.68939456,60543.0,60542.0,0.009174]
[1720015799326,0.67908897,60543.0,60542.0,0.009174]
[1720015799670,0.44848613,60543.0,60542.0,0.009174]
[1720015799906,0.13878516,60543.0,60542.0,0.009174]
[1720015800133,0.03878516,60543.0,60542.0,0.009174]
[1720015800346,0.04478516,60543.0,60542.0,0.011174]
[1720015800560,0.17786553,60548.0,60546.0,0.08660199]
[1720015800797,0.2,60552.0,60546.0,0.08660199]
[1720015800798,0.1,60547.0,60546.0,0.08660199]
[1720015801016,0.1999,60552.0,60543.0,0.08660199]
[1720015801259,0.2404,60557.0,60542.0,0.010174]
[1720015801260,0.006,60543.0,60542.0,0.010174]
[1720015801490,0.007,60543.0,60542.0,0.011174]
[1720015801738,0.007,60543.0,60542.0,0.010174]
[1720015801739,0.006,60543.0,60542.0,0.010174]
[1720015801935,0.2362,60544.0,60542.0,0.009174]
[1720015802842,0.1,60543.0,60542.0,0.009174]
[1720015803791,0.4189,60543.0,60542.0,0.009174]
[1720015804244,0.4189,60543.0,60542.0,0.010174]
[1720015804499,0.4188,60543.0,60542.0,0.009174]
[1720015804996,0.4197,60543.0,60542.0,0.010174]
[1720015805211,0.4197,60543.0,60542.0,0.15677599]
[1720015805419,0.1008,60543.0,60542.0,0.15677599]
[1720015805683,0.001,60543.0,60542.0,0.15677599]
[1720015806169,0.0176466,60543.0,60542.0,0.010174]
[1720015806403,0.0176466,60543.0,60542.0,0.17693181]
[1720015806627,0.001,60543.0,60542.0,0.17693181]
[1720015807072,0.001,60543.0,60542.0,0.09032982]
[1720015807900,0.001,60543.0,60542.0,0.010174]
[1720015808665,0.02994911,60543.0,60542.0,0.010174]
[1720015808873,0.02994826,60543.0,60542.0,0.010174]
[1720015809324,0.53312876,60543.0,60542.0,0.010174]
[1720015809480,0.95702876,60543.0,60534.0,0.009185]
[1720015809678,0.2362,60535.0,60534.0,0.009185]
[1720015809892,0.36493576,60535.0,60534.0,0.009185]
[1720015810689,0.12873576,60535.0,60534.0,0.009185]
[1720015810889,0.02873576,60535.0,60534.0,0.009185]
[1720015811091,0.02873576,60538.0,60534.0,0.08934082]
[1720015811290,0.02873576,60537.0,60536.0,0.08660199]
[1720015811600,0.1,60539.0,60537.0,0.08660199]
[1720015811841,0.06619,60546.0,60540.0,0.08660199]
[1720015811842,0.0999,60542.0,60540.0,0.08660199]
[1720015812016,0.06619,60546.0,60541.0,0.16675781]
[1720015812197,0.06619,60546.0,60541.0,0.08015582]
[1720015812198,0.02943934,60545.0,60541.0,0.08015582]
[1720015812397,0.02943934,60544.0,60542.0,0.08660199]
[1720015812598,0.06619,60546.0,60542.0,0.08660199]
[1720015812833,0.02896981,60545.0,60541.0,0.16675781]
[1720015813036,0.06619,60546.0,60541.0,0.16675781]
[1720015813217,0.02873467,60545.0,60541.0,0.16675781]
[1720015813413,0.02873467,60544.0,60541.0,0.08015582]
[1720015813617,0.06619,60546.0,60541.0,0.16675781]
[1720015813842,0.0287348,60545.0,60541.0,0.08015582]
[1720015814038,0.0287348,60544.0,60541.0,0.08015582]
[1720015814242,0.16619,60546.0,60541.0,0.16675781]
[1720015814439,0.002,60542.0,60541.0,0.16675781]
[1720015814912,0.16619,60546.0,60543.0,0.08660199]
[1720015815188,0.002,60545.0,60541.0,0.16775781]
[1720015815425,0.02873207,60545.0,60542.0,0.0001]
[1720015815598,0.1,60546.0,60544.0,0.14660199]
[1720015815734,0.1,60546.0,60542.0,0.0001]
[1720015815735,0.1,60547.0,60545.0,0.08660199]
[1720015815935,0.11256163,60548.0,60543.0,0.08660199]
[1720015816136,0.12898541,60547.0,60543.0,0.08660199]
[1720015816358,0.066187,60548.0,60542.0,0.0001]
[1720015816583,0.2362,60545.0,60542.0,0.0001]
[1720015816761,0.1,60544.0,60542.0,0.0001]
[1720015818090,0.1,60544.0,60543.0,0.001]
[1720015818287,0.12982514,60544.0,60542.0,0.0001]
[1720015818517,0.02982514,60543.0,60542.0,0.0001]
[1720015818720,0.02982514,60543.0,60542.0,0.0011]
[1720015819294,0.26600254,60543.0,60542.0,0.0011]
[1720015819508,0.36600254,60543.0,60542.0,0.0001]
[1720015819853,0.1,60543.0,60542.0,0.30700079]
[1720015820501,0.04587771,60551.0,60550.0,0.08660199]
[1720015820502,0.14587771,60551.0,60550.0,0.08660199]
[1720015820690,0.1695128,60551.0,60550.0,0.08660199]
[1720015821028,0.12363509,60551.0,60550.0,0.08660199]
[1720015821234,0.02363509,60551.0,60550.0,0.08660199]
[1720015821418,0.02363509,60551.0,60543.0,0.001]
[1720015821419,0.5767,60550.0,60544.0,0.08660199]
[1720015821619,0.02363509,60549.0,60545.0,0.08660199]
[1720015821896,0.2362,60546.0,60542.0,0.001024]
[1720015822143,0.12381524,60545.0,60537.0,0.08622599]
[1720015822364,0.12381524,60545.0,60542.0,0.004]
[1720015822365,0.12382497,60545.0,60542.0,0.004]
[1720015822675,0.2362,60543.0,60542.0,0.004]
[1720015822793,0.2362,60543.0,60535.0,0.08622599]
[1720015823051,0.2362,60536.0,60535.0,0.08622599]
[1720015823306,0.36002497,60536.0,60535.0,0.08622599]
[1720015823788,0.36002497,60536.0,60534.0,0.009185]
[1720015823789,0.71692497,60536.0,60534.0,0.009185]
[1720015824016,0.36002497,60535.0,60534.0,0.009185]
[1720015824768,0.3362,60535.0,60534.0,0.009185]
[1720015825029,0.36566907,60535.0,60534.0,0.009185]
[1720015825276,0.36566881,60535.0,60534.0,0.009185]
[1720015825500,0.36556881,60535.0,60534.0,0.15541099]
[1720015825767,0.12936881,60535.0,60534.0,0.15541099]
[1720015826002,0.02946881,60535.0,60534.0,0.15541099]
[1720015826517,0.03246881,60535.0,60534.0,0.15541099]
[1720015826721,0.03346881,60535.0,60534.0,0.15541099]
[1720015827210,0.03246881,60535.0,60534.0,0.15541099]
[1720015827426,0.03246881,60535.0,60534.0,0.009185]
[1720015827427,0.28516881,60535.0,60534.0,0.009185]
[1720015827693,0.38516881,60535.0,60534.0,0.009185]
[1720015827915,0.3557,60535.0,60534.0,0.009185]
[1720015828161,0.38374344,60535.0,60534.0,0.009185]
[1720015829295,0.38574344,60535.0,60534.0,0.009185]
[1720015829733,0.38374344,60535.0,60534.0,0.009185]
[1720015829957,0.38574344,60535.0,60534.0,0.009185]
[1720015830211,0.38564344,60535.0,60534.0,0.009185]
[1720015830648,0.62184344,60535.0,60534.0,0.009185]
[1720015830867,0.36624344,60535.0,60534.0,0.009185]
[1720015831316,0.3382,60535.0,60534.0,0.09541099]
[1720015831531,0.36648535,60535.0,60534.0,0.09541099]
[1720015832107,0.36648535,60535.0,60534.0,0.009185]
[1720015832904,0.13028535,60535.0,60534.0,0.09541099]
[1720015833104,0.13028535,60535.0,60534.0,0.74281099]
[1720015833105,0.03028535,60535.0,60534.0,0.74281099]
[1720015833905,0.002,60535.0,60534.0,0.74281099]
[1720015834106,0.03034462,60535.0,60534.0,0.74281099]
[1720015834308,0.03034462,60535.0,60534.0,0.15541099]
[1720015834517,0.002,60535.0,60534.0,0.15541099]
[1720015834716,0.03028566,60535.0,60534.0,0.15541099]
[1720015834918,0.0019,60535.0,60534.0,0.15541099]
[1720015835090,0.03018571,60535.0,60534.0,0.31570979]
[1720015835303,0.0019,60535.0,60534.0,0.31570979]
[1720015836855,0.0019,60535.0,60534.0,1.00403059]
[1720015837061,0.0019,60535.0,60534.0,0.93011347]
[1720015837470,0.0019,60535.0,60534.0,0.92680979]
[1720015837917,0.58093494,60552.0,60551.0,0.08622599]
[1720015838120,0.60409931,60552.0,60551.0,0.08622599]
[1720015838329,0.12316437,60552.0,60551.0,0.08622599]
[1720015839107,0.15254362,60552.0,60551.0,0.08722599]
[1720015839321,0.15254362,60552.0,60551.0,0.001]
[1720015839530,0.04106722,60552.0,60551.0,0.14722599]
[1720015839875,0.554,60565.0,60563.0,0.08622599]
[1720015840080,0.554,60565.0,60562.0,0.14622599]
[1720015840081,0.066171,60563.0,60562.0,0.14622599]
[1720015840338,0.08930252,60563.0,60562.0,0.14622599]
[1720015840565,0.02313152,60563.0,60561.0,0.08622599]
[1720015840811,0.02313152,60563.0,60560.0,0.08015582]
[1720015841049,0.02373663,60562.0,60560.0,0.08015582]
[1720015841268,0.02373663,60561.0,60560.0,0.08015582]
[1720015841493,0.02373663,60564.0,60560.0,0.08015582]
[1720015842171,0.02373663,60564.0,60561.0,0.08622599]
[1720015842394,0.12373663,60564.0,60561.0,0.08622599]
[1720015842639,0.02373663,60563.0,60561.0,0.08622599]
[1720015842848,0.02373663,60562.0,60561.0,0.08622599]
[1720015843069,0.14800002,60566.0,60561.0,0.08622599]
[1720015843302,0.02377852,60565.0,60561.0,0.08622599]
[1720015843531,0.02377852,60564.0,60561.0,0.08622599]
[1720015843764,0.04800002,60566.0,60561.0,0.08622599]
[1720015844026,0.02376328,60565.0,60561.0,0.08622599]
[1720015844254,0.02376328,60564.0,60561.0,0.08622599]
[1720015844445,0.11860725,60568.0,60561.0,0.08622599]
[1720015844705,0.02380906,60567.0,60565.0,0.08622599]
[1720015844949,0.11860725,60568.0,60566.0,0.14622599]
[1720015845180,0.01860725,60568.0,60567.0,0.70818061]
[1720015845448,0.309,60579.0,60575.0,0.08622599]
[1720015845678,0.02326524,60578.0,60577.0,0.08622599]
[1720015845918,0.40455274,60579.0,60577.0,0.08622599]
[1720015846105,0.35707922,60579.0,60577.0,0.08622599]
[1720015846311,0.35707922,60579.0,60578.0,0.08622599]
[1720015846521,0.35707922,60579.0,60578.0,0.14622599]
[1720015846522,0.45707922,60579.0,60578.0,0.14622599]
[1720015846703,0.45707922,60579.0,60578.0,0.08622599]
[1720015846910,0.45707922,60579.0,60578.0,0.14622599]
[1720015846911,0.01868248,60579.0,60578.0,0.14622599]
[1720015847078,0.1999,60589.0,60579.0,0.08622599]
[1720015847283,0.066148,60586.0,60579.0,0.08622599]
[1720015848131,0.1999,60589.0,60579.0,0.08622599]
[1720015848342,0.1999,60587.0,60576.0,0.08622599]
[1720015848553,0.1999,60587.0,60578.0,0.08622599]
[1720015848554,0.2435,60585.0,60578.0,0.08622599]
[1720015848775,0.1,60584.0,60579.0,0.08722599]
[1720015849078,0.1,60584.0,60579.0,0.08622599]
[1720015849275,0.1,60584.0,60579.0,0.08722599]
[1720015850508,0.1,60584.0,60583.0,0.08622599]
[1720015850702,0.067147,60589.0,60586.0,0.08622599]
[1720015850703,0.327347,60589.0,60586.0,0.08622599]
[1720015850902,0.327347,60589.0,60588.0,0.14622599]
[1720015850903,0.2612,60589.0,60588.0,0.14622599]
[1720015851105,0.001,60589.0,60588.0,0.14622599]
[1720015851334,0.01812013,60592.0,60588.0,0.14622599]
[1720015851533,0.01812013,60592.0,60591.0,0.14622599]
[1720015851881,0.5713,60597.0,60593.0,0.08622599]
[1720015852081,0.5713,60597.0,60594.0,0.08622599]
[1720015852304,0.637437,60597.0,60593.0,0.08622599]
[1720015852505,0.637437,60597.0,60594.0,0.08622599]
[1720015852713,0.5713,60597.0,60594.0,0.08622599]
[1720015852930,0.5713,60597.0,60593.0,0.08622599]
[1720015853400,0.1,60596.0,60593.0,0.08622599]
[1720015853748,0.1,60596.0,60594.0,0.08622599]
[1720015853950,0.1,60596.0,60594.0,0.08722599]
[1720015854151,0.1,60596.0,60594.0,0.001]
[1720015854574,0.1,60596.0,60589.0,0.08622599]
[1720015854796,0.1,60596.0,60590.0,0.08622599]
[1720015854943,0.1,60596.0,60585.0,0.04903814]
[1720015854944,0.1,60596.0,60593.0,0.08722599]
[1720015855141,0.1,60596.0,60593.0,0.08732599]
[1720015855367,0.1,60596.0,60593.0,0.0011]
[1720015855603,0.4207988,60595.0,60593.0,0.0011]
[1720015855836,0.4207988,60595.0,60581.0,0.06]
[1720015855837,0.5507,60594.0,60581.0,0.04903814]
[1720015856043,0.5507,60594.0,60583.0,0.08622599]
[1720015856044,0.2362,60589.0,60583.0,0.08622599]
[1720015856263,0.1,60588.0,60583.0,0.13526413]
[1720015856476,0.1,60593.0,60584.0,0.04903814]
[1720015856684,0.1,60593.0,60583.0,0.04903814]
[1720015856877,0.1,60593.0,60583.0,0.13512247]
[1720015857125,0.1,60593.0,60583.0,0.04889648]
[1720015857324,0.1,60593.0,60584.0,0.04889648]
[1720015857685,0.1,60593.0,60585.0,0.04889648]
[1720015857885,0.1,60593.0,60586.0,0.04889648]
[1720015858230,0.1,60593.0,60589.0,0.08015582]
[1720015858428,0.1,60593.0,60592.0,0.08622599]
[1720015858629,0.1,60594.0,60592.0,0.08622599]
[1720015858835,0.1,60597.0,60590.0,0.04889648]
[1720015859085,0.1,60597.0,60589.0,0.1290523]
[1720015859287,0.2362,60592.0,60591.0,0.04889648]
[1720015859507,0.2362,60592.0,60588.0,0.09779296]
[1720015859508,0.3362,60592.0,60588.0,0.04889648]
[1720015859710,0.6886,60591.0,60584.0,0.04889648]
[1720015859914,0.2362,60587.0,60583.0,0.04889648]
[1720015860114,0.2362,60587.0,60582.0,0.04889648]
[1720015860115,0.1,60586.0,60582.0,0.04889648]
[1720015860334,0.2362,60585.0,60577.0,0.08622599]
[1720015860469,0.1,60584.0,60583.0,0.0488661]
[1720015860845,0.1,60584.0,60581.0,0.08115582]
[1720015860972,0.1,60584.0,60583.0,0.04886608]
[1720015861595,0.1,60590.0,60583.0,0.04886608]
[1720015862026,0.1,60590.0,60584.0,0.04886608]
[1720015862821,0.0999,60590.0,60584.0,0.04886608]
[1720015863052,0.0999,60590.0,60583.0,0.07829912]
[1720015863053,0.0999,60590.0,60585.0,0.04886608]
[1720015863515,0.0999,60590.0,60589.0,0.08015582]
[1720015863647,0.2416,60594.0,60589.0,0.08015582]
[1720015864478,0.001,60590.0,60589.0,0.1290219]
[1720015864692,0.2416,60594.0,60589.0,0.1290219]
[1720015864899,0.1,60593.0,60589.0,0.1290219]
[1720015865103,0.1,60593.0,60589.0,0.1300219]
[1720015865664,0.001,60590.0,60589.0,0.1300219]
[1720015865861,0.001,60590.0,60582.0,0.08622599]
[1720015866071,0.1,60593.0,60587.0,0.04884104]
[1720015866274,0.1602988,60592.0,60586.0,0.04884104]
[1720015866476,0.6462,60591.0,60589.0,0.002]
[1720015867243,0.6462,60591.0,60589.0,0.001]
[1720015867454,0.6462,60591.0,60585.0,0.04884104]
[1720015867455,0.705414,60590.0,60585.0,0.04884104]
[1720015867659,0.2951,60587.0,60585.0,0.04884104]
[1720015867843,0.1,60586.0,60584.0,0.04884104]
[1720015868992,0.1,60586.0,60582.0,0.08015582]
[1720015868993,0.509075,60585.0,60582.0,0.04884104]
[1720015869195,0.59442,60584.0,60580.0,0.04884104]
[1720015869387,0.1,60583.0,60581.0,0.04884104]
[1720015869599,0.2511,60582.0,60581.0,0.04884104]
[1720015869735,0.3511,60582.0,60579.0,0.04884104]
[1720015870085,0.1,60581.0,60580.0,0.04884104]
[1720015870238,0.1,60581.0,60579.0,0.04884104]
[1720015871048,0.2951,60580.0,60579.0,0.04884104]
[1720015871227,0.3951,60580.0,60579.0,0.04888772]
[1720015872520,0.3981,60580.0,60579.0,0.04889903]
[1720015872767,0.395,60580.0,60579.0,0.04889903]
[1720015872966,0.395,60580.0,60579.0,0.04891073]
[1720015873170,0.395,60580.0,60578.0,0.07336609]
[1720015873320,0.1,60579.0,60578.0,0.07336609]
[1720015873725,0.1,60579.0,60578.0,0.14622599]
[1720015874581,0.003,60580.0,60579.0,0.14622599]
[1720015875240,0.02121491,60580.0,60579.0,0.14622599]
[1720015875969,0.01821491,60580.0,60579.0,0.08622599]
[1720015876200,0.1,60590.0,60580.0,0.08622599]
[1720015876400,0.1,60590.0,60589.0,0.09788832]
[1720015876603,0.1,60590.0,60588.0,0.1223604]
[1720015876604,0.14835943,60590.0,60588.0,0.1223604]
[1720015876818,0.14835943,60590.0,60589.0,0.0978958]
[1720015877012,0.14835943,60590.0,60577.0,0.08622599]
[1720015877013,1.29957595,60589.0,60588.0,0.04895925]
[1720015877252,0.21377401,60586.0,60585.0,0.04354576]
[1720015877456,0.21377401,60586.0,60581.0,0.0978958]
[1720015877457,0.39713397,60586.0,60581.0,0.0978958]
[1720015877567,0.39713397,60586.0,60579.0,0.1223604]
[1720015877568,0.84565996,60585.0,60579.0,0.0988958]
[1720015877769,0.2951,60580.0,60575.0,0.0978958]
[1720015877971,0.75170716,60579.0,60575.0,0.0978958]
[1720015878189,0.18335996,60578.0,60576.0,0.0978958]
[1720015878416,0.18335996,60578.0,60567.0,0.08015582]
[1720015878417,0.66976116,60577.0,60574.0,0.06751672]
[1720015878611,0.21377401,60575.0,60572.0,0.12266793]
[1720015878834,0.1602988,60576.0,60567.0,0.12268066]
[1720015878835,0.3157,60571.0,60567.0,0.12268066]
[1720015879036,0.3157,60571.0,60555.0,0.3789]
[1720015879037,0.2840128,60570.0,60565.0,0.12268066]
[1720015879403,0.2951,60566.0,60564.0,0.12268066]
[1720015879577,0.1,60565.0,60563.0,0.12268066]
[1720015879998,0.26480277,60564.0,60559.0,0.12268066]
[1720015880158,0.26480277,60564.0,60560.0,0.12268066]
[1720015880159,0.3309,60562.0,60560.0,0.12268066]
[1720015880357,0.28460157,60561.0,60558.0,0.12268066]
[1720015880557,0.2601988,60561.0,60557.0,0.12268066]
[1720015880964,0.1,60561.0,60560.0,0.08015582]
[1720015881543,0.1,60563.0,60560.0,0.08015582]
[1720015882154,0.1,60563.0,60560.0,0.22754202]
[1720015882371,0.1,60563.0,60560.0,0.08015582]
[1720015882949,0.1,60563.0,60559.0,0.1473862]
[1720015883311,0.1602988,60562.0,60560.0,0.12290165]
[1720015883558,0.1602988,60562.0,60558.0,0.12290165]
[1720015883559,0.6951,60561.0,60558.0,0.12290165]
[1720015883761,0.3,60559.0,60557.0,0.12290165]
[1720015883887,0.1,60558.0,60557.0,0.12290165]
[1720015884295,0.1,60558.0,60555.0,0.12290165]
[1720015884498,0.1,60558.0,60557.0,0.12290165]
[1720015884939,0.0999,60558.0,60552.0,0.08015582]
[1720015885142,0.0999,60558.0,60556.0,0.1229332]
[1720015885312,0.03012108,60563.0,60556.0,0.1229332]
[1720015885520,0.4403,60564.0,60557.0,0.12295721]
[1720015885733,0.4403,60564.0,60556.0,0.12295721]
[1720015885946,0.2363,60561.0,60560.0,0.001]
[1720015886436,0.27013824,60564.0,60560.0,0.07376207]
[1720015886637,0.27013824,60564.0,60561.0,0.08015582]
[1720015887008,0.1,60563.0,60561.0,0.08015582]
[1720015887214,0.1,60563.0,60561.0,0.12932107]
[1720015887414,0.02973824,60564.0,60561.0,0.08015582]
[1720015887610,0.005,60563.0,60561.0,0.12932107]
[1720015888012,0.11806587,60565.0,60561.0,0.12932107]
[1720015888208,0.006,60563.0,60561.0,0.12932068]
[1720015888409,0.006,60563.0,60562.0,0.04916486]
[1720015888666,0.006,60563.0,60561.0,0.12932068]
[1720015889215,0.006,60563.0,60561.0,0.08015582]
[1720015889660,0.072172,60563.0,60561.0,0.08015582]
[1720015890110,0.066172,60563.0,60561.0,0.08015582]
[1720015890306,0.066172,60563.0,60561.0,0.08115582]
[1720015890513,0.072172,60563.0,60561.0,0.08115582]
[1720015890933,0.61108475,60566.0,60561.0,0.08115582]
[1720015891337,0.005,60563.0,60561.0,0.001]
[1720015891945,0.1602988,60565.0,60561.0,0.001]
[1720015891946,0.02261981,60562.0,60561.0,0.001]
[1720015892117,0.02261952,60562.0,60561.0,0.001]
[1720015892316,0.02261952,60562.0,60561.0,0.002]
[1720015892721,0.02261952,60562.0,60561.0,0.001]
[1720015893693,0.18291832,60562.0,60552.0,0.08015582]
[1720015893933,0.2363,60554.0,60545.0,0.08015582]